[Event "SVK ECo-C Extraliga 2021-22"]
[Site "Slovakia"]
[Date "2022.05.07"]
[Round "7.1"]
[White "Vykouk, Jan"]
[Black "Mihok, Oliver"]
[Result "0-1"]
[ECO "B42"]
[WhiteElo "2471"]
[BlackElo "2544"]
[Annotator "TA"]
[PlyCount "122"]
[EventDate "2021.10.21"]
[EventType "team-tourn"]
[EventCountry "SVK"]
[SourceTitle "playchess.com"]
[Source "ChessBase"]
[SourceQuality "1"]
[TimeControl "40/5400+30:1800+30"]

{[%evp 12,122,40,31,32,43,36,33,39,10,24,-25,9,-25,-6,-12,-27,-4,19,-20,0,-35,-22,-23,-14,-22,0,-42,0,0,0,0,0,0,0,-7,0,0,0,-21,-32,-19,-28,-38,-37,-38,-37,-153,-102,-204,-27,-150,-62,-69,-78,-36,-52,-81,-52,-125,-55,-151,-106,-150,-150,-197,-181,-207,0,-72,0,-162,-211,-234,-222,-245,-234,-221,-190,-337,-100,-319,-335,-308,-310,-325,-313,-331,-329,-356,-347,-335,-291,-475,-458,-903,-914,-880,-828,-893,-887,-777,-776,-1073,-1141,-1201,-1392,-1000,-652,-656,-685,-677,-656]} 1. e4 {[%emt 0:00:03]} c5 {[%emt 0:00:06]} 2. Nf3 {[%emt 0:00:05]} e6 {[%emt 0:00:05]} 3. d4 {[%emt 0:00:03]} cxd4 {[%emt 0:00:03]} 4. Nxd4 {[%emt 0:00:11]} a6 {[%emt 0:00:03]} 5. Bd3 {[%emt 0:02:59]} Bc5 {[%emt 0:00:19]} 6. Nb3 {[%emt 0:00:05]} Ba7 {[%emt 0:00:06]} 7. Qe2 {[%emt 0:00:05]} Ne7 {[%emt 0:00:09] B42: Sicilian: Kan Variation: 5 Bd3.} 8. Be3 {[%emt 0:01:01]} O-O {[%emt 0:01:04]} 9. f4 {[%emt 0:00:46] 9.N1d2 is the modern continuation.} Nbc6 {[%emt 0:01:43][%cal Bb8c6,Bc6b4,Bb4d3][%mdl 32] White is slightly better.} 10. N1d2 {[%emt 0:01:21]} b5 {[%emt 0:02:59] [#]} 11. O-O-O $146 {[%emt 0:02:23]} (11. a3 {deserves consideration.}) ({Predecessor:} 11. h4 Nb4 12. h5 Qc7 13. h6 g6 14. Bxa7 Rxa7 15. c3 Nxd3+ 16. Qxd3 d5 17. e5 {½-½ (39) Corrales Jimenez,F (2591)-Teske,H (2520) Roquetas de Mar 2011}) 11... Nb4 {[%emt 0:04:00]} 12. a3 {[%emt 0:00:28]} Nxd3+ {[%emt 0:00:38]} 13. Qxd3 {[%emt 0:00:05]} Bxe3 {[%emt 0:02:56]} 14. Qxe3 {[%emt 0:00:04]} Qc7 {[%emt 0:00:38]} 15. Rhf1 {[%emt 0:03:59]} Bb7 {[%emt 0:01:50][%cal Bc8b7,Bb7a6,Ba6b5][%mdl 32]} 16. Kb1 {[%emt 0:05:07]} (16. Qc5 $5 {[%cal Rc5c7]} Rac8 17. Qxc7 Rxc7 18. g3 $11) 16... Rfc8 {[%emt 0:12:53]} 17. Rc1 {[%emt 0:00:23]} a5 {[%emt 0:01:04]} 18. Nd4 {[%emt 0:00:53]} (18. c4 $5 {[%cal Rc4b5]}) 18... Qb6 {[%emt 0:04:10]} 19. c4 {[%emt 0:03:19]} Ba6 {[%emt 0:10:12][%cal Rb5c4]} 20. cxb5 {[%emt 0:01:49]} Bxb5 {[%emt 0:00:08]} 21. Rxc8+ {[%emt 0:00:05]} Rxc8 {[%emt 0:00:17]} 22. Rc1 {[%emt 0:00:12]} Rb8 {[%emt 0:04:26][%cal Ob5d3] ( -> ...Bd3+!)} 23. Qc3 {[%emt 0:01:56] Inhibits Bd3+.} f5 {[%emt 0:03:49][%cal Ob5d3]} 24. Nxb5 {[%emt 0:00:17]} Qxb5 {[%emt 0:00:12]} 25. Nc4 {[%emt 0:00:33]} fxe4 {[%emt 0:02:40] Hoping for ...d5.} 26. Qxa5 {[%emt 0:00:08]} Qb3 {[%emt 0:10:18] White must now prevent ...d5.} 27. Qc3 {[%emt 0:02:38]} Qxc3 {[%emt 0:01:04]} 28. Rxc3 $15 {[%emt 0:00:05][%mdl 4096] Endgame KRN-KRN} Nd5 {[%csl LRc3,LRf4]} 29. Rg3 {[%emt 0:02:34]} (29. Rc2 $1 $15) 29... Rf8 {[%emt 0:05:07]} ({And not} 29... Nxf4 30. Nd6 $15) (29... Kf8 $142 30. Nd2 e3) 30. b4 {[%emt 0:00:08]} (30. Rb3 $17) 30... Rxf4 $2 {[%emt 0:00:06]} (30... Rc8 $1 $19 {[%cal Rc8c4]} 31. Ne3 Nxf4) 31. Kb2 {[%emt 0:04:14]} (31. Rb3 $11 {keeps the balance.}) 31... Nc7 {[%emt 0:02:52]} (31... Rf2+ $17 32. Kb3 Re2) 32. Nd6 {[%emt 0:01:16]} Kf8 $1 {[%emt 0:01:59]} 33. Re3 {[%emt 0:00:54]} Rf2+ {[%emt 0:00:54]} 34. Kb3 {[%emt 0:00:11]} Rxg2 {[%emt 0:00:38]} 35. a4 {[%emt 0:10:26]} (35. Nxe4 $15 Rxh2 36. a4) 35... Rxh2 {[%emt 0:05:07]} (35... Nd5 $1 $17 {[%cal Rd5e3]} 36. Re1 Rxh2 37. Nxe4 Rh3+ 38. Kc4 Ra3) 36. a5 {[%emt 0:03:02]} ({White should try} 36. b5 $15) 36... Rh1 {[%emt 0:07:09] aiming for ...h5.} 37. Rxe4 {[%emt 0:02:00]} Ke7 {[%emt 0:02:30]} 38. Nc8+ {[%emt 0:01:11]} (38. Nf5+ $17 Kd8 39. Nd6) 38... Kd8 $1 $19 {[%emt 0:00:41]} 39. Nd6 {[%emt 0:00:12]} Ke7 {[%emt 0:07:41]} (39... Rd1 $19 {has better winning chances.} 40. Nb7+ Kc8) 40. Nc8+ $17 {[%emt 0:03:55]} Kd8 {[%emt 0:00:17]} (40... Kf6 $17 41. Rc4 Nb5) 41. Nd6 $19 {[%emt 0:30:24]} Rd1 {[%emt 0:34:42]} 42. Nb7+ {[%emt 0:00:06]} Kc8 $1 {[%emt 0:00:36]} 43. Nc5 {[%emt 0:00:06]} g5 $1 {[%emt 0:00:53]} 44. Rc4 {[%emt 0:05:21] [#]} Kb8 $1 {[%emt 0:00:20] Threatens to win with ...h5.} 45. Ka4 {[%emt 0:01:11]} (45. Rg4 $142) 45... Ra1+ {[%emt 0:00:00]} 46. Kb3 {[%emt 0:00:00] [#] Now White is beyond hope.} d6 $1 {[%emt 0:00:00]} 47. Nd7+ {[%emt 0:00:00]} Kb7 {[%emt 0:00:00]} 48. Nf6 {[%emt 0:00:00]} h6 {[%emt 0:00:00]} 49. Rg4 {[%emt 0:00:00]} Nb5 {[%emt 0:00:00]} 50. Rg2 {[%emt 0:00:00]} Ra3+ {[%emt 0:00:00]} 51. Kb2 {[%emt 0:00:00]} Rh3 {[%emt 0:00:00] Inhibits Rh2.} 52. Rf2 $2 {[%emt 0:00:00]} (52. Rg1) 52... Rh4 {[%emt 0:00:00] And now ...Rf4 would win. Black is clearly winning.} 53. Kb3 {[%emt 0:00:00]} (53. Nd7 $142) 53... Rf4 {[%emt 0:00:00]} 54. Rxf4 {[%emt 0:00:00]} gxf4 {[%emt 0:00:00] KN-KN} 55. Kc4 {[%emt 0:00:00]} Kc6 {[%emt 0:00:00]} 56. Kd3 {[%emt 0:00:00]} d5 {[%emt 0:00:00]} 57. Ng4 {[%emt 0:00:00]} h5 {[%emt 0:00:00]} 58. Ne5+ {[%emt 0:00:00]} Kd6 {[%emt 0:00:00]} 59. Nf7+ {[%emt 0:00:00]} Kc7 {[%emt 0:00:00]} 60. Ke2 {[%emt 0:00:00]} Nd4+ {[%emt 0:00:00]} 61. Kd3 {[%emt 0:00:00]} Nc6 {[%emt 0:00:00] Weighted Error Value: White=0.42/Black=0.22 (precise)} 0-1

[Event "SVK ECo-C Extraliga 2021-22"]
[Site "Slovakia"]
[Date "2022.05.07"]
[Round "7.1"]
[White "Zwardon, Vojtech"]
[Black "Krejci, Jan"]
[Result "1-0"]
[ECO "A13"]
[WhiteElo "2468"]
[BlackElo "2520"]
[Annotator "TA"]
[PlyCount "83"]
[EventDate "2021.10.21"]
[EventType "team-tourn"]
[EventCountry "SVK"]
[SourceTitle "playchess.com"]
[Source "ChessBase"]
[SourceQuality "1"]
[TimeControl "40/5400+30:1800+30"]

{[%evp 9,83,8,11,0,9,-11,-2,-10,14,13,13,13,14,0,34,29,33,26,41,11,3,0,20,0,67,0,0,-15,79,81,87,97,104,100,100,100,151,118,147,134,146,60,84,-33,-13,-15,-18,-19,-33,-60,0,0,0,-88,-88,-75,20,43,140,134,290,123,137,64,296,329,422,405,427,426,29979,697,622,409,29993,29994]} 1. c4 {[%emt 0:00:01]} e6 {[%emt 0:00:05]} 2. Nf3 {[%emt 0:00:02]} Nf6 {[%emt 0:00:31]} 3. e3 {[%emt 0:00:04]} d5 {[%emt 0:01:03]} 4. Nc3 {[%emt 0:00:07]} dxc4 {[%emt 0:03:12]} 5. Bxc4 {[%emt 0:00:08]} a6 {[%emt 0:00:03]} 6. a4 {[%emt 0:02:02] A17: English Opening: 1...Nf6 with ...Bb4.} b6 {[%emt 0:05:20]} 7. b3 {[%emt 0:00:54]} Bb7 {[%emt 0:00:15]} 8. Bb2 {[%emt 0:00:09] [#] The position is equal.} Nbd7 $146 {[%emt 0:04:19]} ({Predecessor:} 8... Bb4 9. O-O O-O 10. Qe2 c5 11. Rfd1 Nbd7 12. d4 cxd4 13. exd4 Qc7 14. Rac1 Qf4 {0-1 (37) Razo,R (946)-Ferluga,S (1353) LSS email 2009}) 9. O-O {[%emt 0:01:30]} Bb4 {[%emt 0:01:14]} 10. Rc1 {[%emt 0:00:57]} O-O {[%emt 0:00:23]} 11. Qe2 {[%emt 0:00:20]} Ra7 {[%emt 0:10:21]} 12. Rfd1 {[%emt 0:04:33]} Qa8 {[%emt 0:00:08]} 13. d4 {[%emt 0:00:14]} h6 {[%emt 0:06:02]} 14. Ne1 {[%emt 0:02:23]} c5 {[%emt 0:10:26]} 15. dxc5 {[%emt 0:01:54]} Bxc5 {[%emt 0:01:27]} 16. f3 {[%emt 0:03:00]} Nd5 {[%emt 0:04:15]} (16... Qb8 $11) 17. Nc2 {[%emt 0:03:27]} (17. Bxd5 $14 exd5 18. Nd3) 17... Nf4 $11 {[%emt 0:05:46]} 18. Qf1 {[%emt 0:02:11]} (18. Qf2 $5 {[%cal Rd1d7]} Ne5 19. Be2 $11) 18... Nd5 {[%emt 0:09:28]} (18... Ne5 $11) 19. Nxd5 {[%emt 0:03:10]} exd5 {[%emt 0:01:06]} 20. b4 {[%emt 0:00:25]} Bd6 {[%emt 0:02:44]} 21. Bb3 {[%emt 0:14:32]} a5 {[%emt 0:01:03]} 22. Nd4 {[%emt 0:01:08] And now Qf2 would win.} axb4 {[%emt 0:06:41]} (22... Be5 $142) 23. Nf5 $1 $16 {[%emt 0:02:03][%csl LRd6,LRg7]} Be5 {[%emt 0:00:31]} 24. Bxe5 {[%emt 0:01:40]} Nxe5 {[%emt 0:00:01]} 25. Ne7+ {[%emt 0:00:06]} (25. Qe1 $16) 25... Kh8 $1 $14 {[%emt 0:00:06]} 26. Nxd5 {[%emt 0:00:03] White is much more active.} (26. Qe1 $1 $16) 26... Ba6 $1 $36 {[%emt 0:03:04][%mdl 2048] Black has the initiative.} 27. Qe1 {[%emt 0:10:04]} (27. Nxb6 Qb8 28. Nc4 Rc7 $15) 27... Nd3 {[%emt 0:00:05]} 28. Rxd3 {[%emt 0:00:03]} Bxd3 {[%emt 0:00:05]} 29. Qxb4 {[%emt 0:00:05]} Rd8 {[%emt 0:02:06]} (29... Rc8 $15 30. Rc3 Rxc3 31. Qxc3 Ba6) 30. Nxb6 $11 {[%emt 0:09:03]} Qb8 {[%emt 0:00:15]} 31. Rc5 {[%emt 0:00:29]} (31. Qc5 $11 {remains equal.}) 31... Re7 $1 $17 {[%emt 0:07:05]} 32. e4 {[%emt 0:07:08]} Qf4 {[%emt 0:07:15]} (32... Ba6 $17 {aiming for ...Qd6.} 33. a5 Rc7) 33. Nd5 $11 {[%emt 0:00:52]} Rxd5 {[%emt 0:00:58]} 34. Bxd5 $16 {[%emt 0:00:11] Threatens to win with h3.} Qe3+ {[%emt 0:00:05]} 35. Kh1 {[%emt 0:00:04] Hoping for Rc8+.} Kh7 {[%emt 0:00:07]} 36. h3 {[%emt 0:06:22]} (36. Rc8 $1 $16) 36... Re5 $2 {[%emt 0:00:24]} (36... Qf2 $1 $14 37. Bc4 Rd7 38. Bxd3 Rxd3) 37. Qb2 $18 {[%emt 0:02:35]} Rh5 {[%emt 0:07:50]} 38. Rc1 {[%emt 0:02:09]} Be2 {[%emt 0:00:19][%cal Oh5h3] [#] ( -> ...Rxh3+!)} 39. e5 $1 {[%emt 0:00:15][%cal Be4e5,Be5e6][%mdl 32] Be4+ is the strong threat.} (39. Bxf7 {[#] leads to mate.} Rxh3+ $3 {[%mdl 512]} 40. gxh3 Qxf3+ 41. Kg1 Qg3+ 42. Kh1 Bf3+) 39... Qf2 {[%emt 0:02:00]} (39... Bd3 $18 40. Qc3 Rxe5) 40. Be4+ {[%emt 0:02:04]} (40. Qb1+ $142 g6 41. Qb7 (41. Rc7 Rxh3+ 42. gxh3 Bxf3+ 43. Bxf3 Qxf3+ 44. Kh2 Qf2+ 45. Kh1 Qf3+ 46. Kh2 Qf2+ 47. Kh1 Qf3+ $11) 41... Rf5 42. Bxf7 h5 43. Be6+ Kh6 44. Bxf5 Bd1 45. Rxd1) 40... g6 {[%emt 0:00:02][%cal Oh5h3] White must now prevent ...Rxh3+!} 41. Qb7 {[%emt 0:30:21]} Kg8 {[%emt 0:04:06]} (41... Bc4 $18 42. Bxg6+ Kxg6) 42. e6 {[%emt 0:00:00] Weighted Error Value: White=0.42/Black=0.60} 1-0

[Event "SVK ECo-C Extraliga 2021-22"]
[Site "Slovakia"]
[Date "2022.05.08"]
[Round "7.1"]
[White "Egyed, Judit"]
[Black "Manik, Mikulas"]
[Result "1/2-1/2"]
[ECO "B90"]
[WhiteElo "2086"]
[BlackElo "2368"]
[Annotator "TA"]
[PlyCount "35"]
[EventDate "2021.10.21"]
[EventType "team-tourn"]
[EventCountry "SVK"]
[SourceTitle "playchess.com"]
[Source "ChessBase"]
[SourceQuality "1"]
[TimeControl "40/5400+30:1800+30"]

{[%evp 19,35,14,16,17,54,13,53,31,21,32,35,12,10,0,19,12,6,-29]} 1. e4 {[%emt 0:30:13]} c5 {[%emt 0:30:02]} 2. Nf3 {[%emt 0:00:07]} d6 {[%emt 0:00:00]} 3. d4 {[%emt 0:00:00]} cxd4 {[%emt 0:00:00]} 4. Nxd4 {[%emt 0:00:00]} Nf6 {[%emt 0:00:00]} 5. Nc3 {[%emt 0:03:19]} a6 {[%emt 0:01:04]} 6. f3 {[%emt 0:00:30]} e5 {[%emt 0:00:30]} 7. Nb3 {[%emt 0:00:30]} Be6 {[%emt 0:00:30]} 8. Be3 {[%emt 0:00:30]} Nbd7 {[%emt 0:00:30]} 9. Qd2 {[%emt 0:00:30]} h5 {[%emt 0:00:30]} 10. O-O-O {[%emt 0:09:14]} Rc8 {[%emt 0:00:31]} 11. Kb1 {[%emt 0:00:30] B90: Sicilian Najdorf: Unusual White 6th moves, 6 Be3 Ng4 and 6 Be3 e5.} Qc7 {[%emt 0:05:26]} 12. h3 {[%emt 0:00:31]} h4 {[%emt 0:08:00]} 13. Bg5 {[%emt 0:03:21] White is slightly better.} Be7 {[%emt 0:00:30]} 14. f4 {[%emt 0:08:45] [#]} b5 $146 {[%emt 0:00:30]} ({Predecessor:} 14... Bc4 15. f5 b5 16. a3 Rh5 17. Be3 Bxf1 18. Rhxf1 Nc5 19. Nxc5 dxc5 20. Nd5 Nxd5 21. Qxd5 {1-0 (51) Chizhikov,V (2313)-Skuhala,L (2059) Chess.com INT 2018}) 15. a3 {[%emt 0:00:30]} exf4 {[%emt 0:08:50] The position is equal.} 16. Bxf4 {[%emt 0:25:35]} Ne5 {[%emt 0:01:16]} 17. Nd4 {[%emt 0:04:04]} O-O {[%emt 0:05:11]} 18. g3 {[%emt 0:04:31] Weighted Error Value: White=0.14 (very precise) /Black=0.13 (very precise)} 1/2-1/2

[Event "SVK ECo-C Extraliga 2021-22"]
[Site "Slovakia"]
[Date "2022.05.07"]
[Round "7.2"]
[White "Zilka, Stepan"]
[Black "Jurcik, Marian"]
[Result "1-0"]
[ECO "B62"]
[WhiteElo "2609"]
[BlackElo "2407"]
[Annotator "TA"]
[PlyCount "81"]
[EventDate "2021.10.21"]
[EventType "team-tourn"]
[EventCountry "SVK"]
[SourceTitle "playchess.com"]
[Source "ChessBase"]
[SourceQuality "1"]
[TimeControl "40/5400+30:1800+30"]

{[%evp 14,81,41,33,52,20,22,19,57,50,39,54,48,36,43,32,39,33,31,19,8,17,47,37,38,18,21,12,12,14,10,12,16,16,22,16,22,15,18,25,37,0,14,0,0,0,0,0,7,3,13,0,188,181,175,41,166,175,148,120,1170,1158,3024,2897,6209,5193,4134,2842,1753,1139]} 1. e4 {[%emt 0:00:06]} c5 {[%emt 0:00:19]} 2. Nf3 {[%emt 0:00:07]} d6 {[%emt 0:00:22]} 3. d4 {[%emt 0:00:06]} cxd4 {[%emt 0:00:10]} 4. Nxd4 {[%emt 0:00:08]} Nf6 {[%emt 0:00:13]} 5. Nc3 {[%emt 0:00:06]} Nc6 {[%emt 0:00:37]} 6. Bg5 {[%emt 0:00:18]} e6 {[%emt 0:00:33]} 7. Qd3 {[%emt 0:00:26]} a6 {[%emt 0:04:07]} 8. O-O-O {[%emt 0:00:43] Hoping for Nxc6.} Be7 {[%emt 0:10:11] B62: Sicilian: Richter-Rauzer: 6...e6: Unusual White 7th moves.} 9. Be2 {[%emt 0:00:03] 9.Nxc6 gains popularity.} Nxd4 {[%emt 0:12:21]} 10. Qxd4 {[%emt 0:00:08]} Qa5 {[%emt 0:01:03] The position is equal.} 11. Bd2 {[%emt 0:06:29] [#]} (11. f4 {seems wilder.} Bd7 12. e5 dxe5 13. fxe5 O-O-O 14. Qf4) 11... Qc5 $146 {[%emt 0:11:40]} ({Predecessor:} 11... Qc7 12. g4 O-O 13. g5 Nd7 14. f4 b5 15. f5 Qc5 16. Qd3 b4 17. Na4 Qb5 {1-0 (55) Lanka,Z (2475)-Shengelia,D (2568) Austria 2008}) 12. Qxc5 {[%emt 0:05:09]} dxc5 {[%emt 0:01:00]} 13. e5 {[%emt 0:00:04]} Nd5 {[%emt 0:00:55]} 14. Bf3 {[%emt 0:01:23]} Nxc3 {[%emt 0:00:26]} 15. Bxc3 {[%emt 0:00:29]} Rb8 {[%emt 0:03:30]} 16. a4 {[%emt 0:03:52]} Bd7 {[%emt 0:01:29]} 17. a5 {[%emt 0:01:00]} Bb5 {[%emt 0:00:17]} (17... Kd8 {keeps more tension.} 18. Bd2 Kc7 19. Be3 Bc6) 18. Bd2 {[%emt 0:01:40]} O-O {[%emt 0:01:24]} 19. Be3 {[%emt 0:00:44]} Rfc8 {[%emt 0:01:52]} 20. h4 {[%emt 0:10:38]} Bd8 {[%emt 0:04:01]} 21. Bd2 {[%emt 0:02:52]} b6 {[%emt 0:13:17]} 22. axb6 {[%emt 0:00:37]} Bxb6 {[%emt 0:00:06]} 23. Bc3 {[%emt 0:02:45]} Rd8 {[%emt 0:05:23]} 24. h5 {[%emt 0:04:29]} c4 {[%emt 0:02:03]} 25. Rhf1 {[%emt 0:00:52]} Rxd1+ {[%emt 0:07:29]} (25... g6 {is more complex.} 26. g4 Kg7 27. Be4 Rxd1+ 28. Kxd1 Rg8) 26. Kxd1 {[%emt 0:03:30]} Rd8+ {[%emt 0:00:39]} 27. Kc1 {[%emt 0:02:51]} Rd7 {[%emt 0:05:44]} 28. Be4 {[%emt 0:06:15]} g6 {[%emt 0:03:32]} 29. h6 {[%emt 0:10:11]} Bc5 {[%emt 0:01:41]} 30. g4 {[%emt 0:05:12]} a5 {[%emt 0:02:02]} 31. Kb1 {[%emt 0:02:30]} Bb4 {[%emt 0:02:10]} 32. f4 {[%emt 0:01:47]} Ba6 $2 {[%emt 0:02:52] [#]} (32... Bxc3 $11 {and Black stays safe.} 33. bxc3 Rd2) 33. Bc6 $18 {[%emt 0:01:47]} Rd8 {[%emt 0:01:27]} 34. Kc1 {[%emt 0:04:49]} (34. Bxb4 $18 axb4 35. c3) 34... Kf8 {[%emt 0:01:35]} (34... Bc5 $14) 35. Bxb4+ {[%emt 0:02:14]} axb4 {[%emt 0:00:01]} 36. Rd1 {[%emt 0:00:11]} Rxd1+ {[%emt 0:01:24][%mdl 8192]} (36... Rc8 $16) 37. Kxd1 {[%emt 0:00:09] KB-KB. White is clearly winning.} c3 38. bxc3 {[%emt 0:02:17] [#] Strongly threatening g5.} bxc3 {[%emt 0:00:34]} 39. Ke1 {[%emt 0:02:22]} Ke7 {[%emt 0:00:38]} 40. g5 {[%emt 0:05:26]} Kd8 {[%emt 0:00:35]} 41. Ba4 {[%emt 0:30:11] Weighted Error Value: White=0.17 (very precise) /Black=0.29 (precise)} 1-0

[Event "SVK ECo-C Extraliga 2021-22"]
[Site "Slovakia"]
[Date "2022.05.07"]
[Round "7.2"]
[White "Kriebel, Tadeas"]
[Black "Kostolansky, Sebastian Lukas"]
[Result "1/2-1/2"]
[ECO "B48"]
[WhiteElo "2519"]
[BlackElo "2395"]
[Annotator "TA"]
[PlyCount "101"]
[EventDate "2021.10.21"]
[EventType "team-tourn"]
[EventCountry "SVK"]
[SourceTitle "playchess.com"]
[Source "ChessBase"]
[SourceQuality "1"]
[TimeControl "40/5400+30:1800+30"]

{[%evp 22,101,61,22,37,33,50,45,42,33,25,30,29,41,30,39,41,50,59,39,87,84,100,71,78,7,9,0,0,0,0,-75,-83,-68,-77,-90,-90,-90,-90,-90,-90,-79,-79,-100,-111,-96,-36,-53,-38,-160,-136,-131,-101,-107,-94,-107,-45,-69,0,0,0,-23,-23,-33,-25,-35,-25,-32,-32,-39,-23,-39,0,0,0,0,0,0,0,0,0,0]} 1. e4 {[%emt 0:00:04]} c5 {[%emt 0:00:09]} 2. Nf3 {[%emt 0:00:05]} e6 {[%emt 0:00:06]} 3. d4 {[%emt 0:00:08]} cxd4 {[%emt 0:00:07]} 4. Nxd4 {[%emt 0:00:04]} Nc6 {[%emt 0:00:07]} 5. Nc3 {[%emt 0:00:07]} Qc7 {[%emt 0:00:34]} 6. Be3 {[%emt 0:01:55]} a6 {[%emt 0:00:45]} 7. Qd2 {[%emt 0:02:29]} Nf6 {[%emt 0:01:36]} 8. f4 {[%emt 0:00:39]} d6 {[%emt 0:14:01]} 9. Be2 {[%emt 0:02:38]} Be7 {[%emt 0:10:12]} 10. O-O-O {[%emt 0:03:53]} O-O {[%emt 0:05:22]} 11. g4 {[%emt 0:00:04][%cal Bg2g4,Bg4g5,Bg5f6][%mdl 32]} Nxd4 {[%emt 0:08:07]} 12. Bxd4 {[%emt 0:01:54] Hoping for g5.} e5 {[%emt 0:04:15] B84: Sicilian Scheveningen: 6 Be2 a6, lines without early Be3.} 13. Bf2 {[%emt 0:00:05]} b5 {[%emt 0:02:58]} 14. g5 {[%emt 0:32:17]} b4 {[%emt 0:00:05] White is slightly better.} 15. gxf6 {[%emt 0:00:03]} bxc3 {[%emt 0:00:04]} 16. Qxc3 {[%emt 0:00:05]} (16. bxc3 Bxf6 17. Qxd6 Qxc3 $17) 16... Qxc3 {[%emt 0:01:22]} 17. bxc3 {[%emt 0:00:04] [#]} gxf6 $146 {[%emt 0:21:00]} ({Predecessor:} 17... Bxf6 18. Rxd6 Be7 19. fxe5 Bb7 20. Bd3 Bxd6 21. exd6 Rfd8 22. Bg3 f5 23. Re1 Bxe4 24. Bxe4 fxe4 25. Rxe4 {½-½ (51) Gascon del Nogal,J (2475)-Kiselev,P (2303) Lorca 2019}) 18. Bh4 {[%emt 0:01:54]} Re8 {[%emt 0:03:23]} 19. Rhg1+ {[%emt 0:15:23]} Kf8 $1 {[%emt 0:00:05]} 20. Rdf1 {[%emt 0:00:21]} (20. Rg2 $5 {[%cal Rd1g1]} f5 21. Bxe7+ Rxe7 22. fxe5 (22. Rxd6 Bb7 $11) 22... Rxe5 23. exf5 $14 (23. Rxd6 Bb7 $11)) 20... Be6 {[%emt 0:16:18]} (20... f5 $14 21. Bxe7+ Rxe7) 21. f5 $1 $16 {[%emt 0:00:26]} Bd7 {[%emt 0:00:38][%cal Be6d7,Bd7c6,Bc6e4][%mdl 32]} 22. Rg3 {[%emt 0:16:02] Threatens to win with Rfg1.} Bd8 {[%emt 0:01:06][%cal Be7d8,Bd8b6,Bb6e3][%mdl 32]} 23. Rfg1 {[%emt 0:02:46] White is more active.} (23. Rd1 $1 $16 {[%cal Rd1d6]}) 23... Ke7 $11 {[%emt 0:02:58]} 24. Rg7 {[%emt 0:01:51]} Bb6 {[%emt 0:00:19] ...Be3+ is the strong threat.} 25. R1g3 {[%emt 0:01:12] Against Be3+. Strongly threatening Bh5.} Bc6 {[%emt 0:03:55]} 26. Bh5 {[%emt 0:04:13]} (26. Bc4 $11 Rf8 27. Rxh7 Bxe4 28. Rg6 Be3+ 29. Kd1) 26... Rf8 $17 {[%emt 0:00:03]} 27. Rxh7 {[%emt 0:00:26] And now Rgg7 would win.} Bxe4 {[%emt 0:02:22]} 28. Rgg7 {[%emt 0:07:23]} Be3+ $1 {[%emt 0:00:56]} (28... Bxf5 $6 29. Rxf7+ Ke6 30. Re7+ Kd5 31. Bf3+ Kc4 32. Rc7+ Kb5 33. Bxa8 Rxa8 34. c4+ Ka4 35. c5 $1 Bxc5 36. Rhf7 $11) 29. Kd1 {[%emt 0:00:09]} Bd5 {[%emt 0:01:19]} (29... Bxf5 $6 30. Bxf7 Bxh7 31. Bd5+ Ke8 32. Bc6+ Kd8 33. Bxa8 $11) 30. Rg6 {[%emt 0:00:35]} Bg5 {[%emt 0:00:27]} ({Don't play} 30... Bxa2 $6 31. Rxf6 Kd7 32. Ke2 $11 (32. Bxf7 Bxf7 33. Rhxf7+ Rxf7 $11)) 31. Bxg5 {[%emt 0:00:47]} fxg5 {[%emt 0:00:03]} 32. f6+ {[%emt 0:00:16]} Kd7 {[%emt 0:00:51] White must now prevent ...Be4.} 33. Rxg5 {[%emt 0:02:25]} Rh8 {[%emt 0:00:45]} (33... Bxa2 $17 34. Bf3 Rac8) 34. Bg4+ {[%emt 0:02:26]} Kc6 {[%emt 0:00:08]} 35. Bf5 {[%emt 0:01:39]} (35. Rgh5 $15 Rxh7 36. Rxh7) 35... Rxh7 {[%emt 0:00:53]} 36. Bxh7 {[%emt 0:00:02][%mdl 4096] Endgame KRB-KRB} Kd7 {[%emt 0:00:36]} 37. Bf5+ {[%emt 0:01:21] [#]} Be6 $1 {[%emt 0:00:04]} 38. Bd3 {[%emt 0:00:24]} Rh8 {[%emt 0:00:41]} (38... Bxa2 $17 39. c4 Ke6) 39. Bxa6 {[%emt 0:00:51]} Rxh2 {[%emt 0:00:14]} ({Black should play} 39... Bxa2 $15 40. Rg2 (40. Bb5+ Ke6 $19) 40... Rh4) 40. a4 $11 {[%emt 0:00:31]} Rf2 {[%emt 0:00:57]} 41. Bd3 {[%emt 0:04:15]} Rxf6 {[%emt 0:03:26]} 42. a5 {[%emt 0:00:04]} Rh6 {[%emt 0:03:59]} 43. a6 {[%emt 0:03:28]} Rh1+ {[%emt 0:03:50]} 44. Kd2 {[%emt 0:00:03]} Ra1 {[%emt 0:00:04]} 45. Rg8 {[%emt 0:01:09]} Kc7 {[%emt 0:01:26]} 46. Ra8 {[%emt 0:01:22]} Bc8 {[%emt 0:04:37]} 47. Ra7+ $1 {[%emt 0:02:28] The position is equal.} Kb6 {[%emt 0:03:59]} 48. Rxf7 {[%emt 0:00:13]} Bxa6 {[%emt 0:00:03]} 49. Rd7 {[%emt 0:01:04]} Kc6 {[%emt 0:00:28]} 50. Ra7 {[%emt 0:00:19]} Kb6 {[%emt 0:00:04]} 51. Rd7 {[%emt 0:00:13] Weighted Error Value: White=0.18 (very precise) /Black=0.11 (very precise)} 1/2-1/2